Cogmind - Beta 13 @@@ ROGUE MODE // 2024.05.21 @ 14:05:23 Player: H3-RMN Result: Destroyed by G-50 Soldier with Heavy Laser Performance ------------- Evolutions (3) 1500 Regions Visited (13) 2600 Robots Destroyed (131) 655 Value Destroyed (4118) 4118 Prototype IDs (249) 4980 Alien Tech Used (0) 0 Bonus (4686) 4686 TOTAL SCORE: 18539 Bonus ------- High Alert Combat Kills 551 Follower Combat Kills 35 Entered Garrisons 200 Aligned with FarCom 300 Met Data Miner 300 Used Data Conduit 3000 Acquired ECA 300 Cogmind --------- Core Integrity 0/700 Matter 214/300 Energy 98/100 System Corruption 18% Temperature Cool (20) Movement Hovering (77) Location -6/Proximity Caves Parts ------- > --- POWER (1) -------- (None) > --- PROPULSION (5) --- Combat Airjet Combat Airjet > --- UTILITY (5) ------ Large Storage Unit Machine Analyzer Core Analyzer Core Analyzer Hacking Suite > --- WEAPON (2) ------- Spear Spear > --- INVENTORY (15) --- Enhanced Nuclear Core High-capacity Storage Unit Superbattery (1500) Improved Transmission Jammer Makeshift System Shield Advanced System Shield Authchip [Weapon] Authchip [Weapon] Advanced Trap Extractor (4/8 Blade) Decoy Drone Bay (16/16) Heavy Missile Launcher Improved Datajack Greatsword Peak State ------------ > --- POWER ------------ Light Deuterium Engine > --- PROPULSION ------- Medium Treads Carbon-fiber Leg Medium Armored Exoskeleton > --- UTILITY ---------- High-capacity Storage Unit Machine Analyzer Advanced Targeting Computer Powered Armor Hacking Suite > --- WEAPON ----------- Enhanced Autogun Enhanced Autogun > --- INVENTORY -------- Backup Power I Combat Airjet Combat Airjet Combat Airjet Combat Airjet Combat Airjet Large Storage Unit Superbattery Experimental Sensor Array Transport Network Coupler Advanced Salvage Targeting Computer Improved Transmission Jammer Advanced System Shield Advanced Trap Extractor Decoy Drone Bay Gauss Rifle Mini Grenade Launcher Improved Datajack Improved Plasma Cutter [Rating: 60] Favorites ----------- Power Ion Engine Engine Ion Engine Power Core Nuclear Core Propulsion Combat Airjet Treads Improved Treads Leg Carbon-fiber Leg Wheel Armored Wheel Hover Unit Combat Airjet Flight Unit Cesium-ion Thruster Utility Hacking Suite Device Hardlight Generator Storage High-capacity Storage Unit Processor Machine Analyzer Hackware Hacking Suite Protection Powered Armor Weapon Enhanced Autogun Energy Gun Particle Gun Energy Cannon Improved EM Pulse Cannon Ballistic Gun Enhanced Autogun Ballistic Cannon Mini Assault Cannon Launcher Rocket Launcher Special Weapon Plasma Cutter Impact Weapon Impact Mace Slashing Weapon Greatsword Piercing Weapon Spear Special Melee Weapon Improved Datajack Build | -11 -10 -10 -10 -9 -8 -8 -7 -7 -7 -7 -7 -7 -6 ------- Run | Yrd Mat Min Exi Min Mat Gar Fac Was Fac Low Low Dat Pro Slots Evolved 6 | . . . . . 4 . 2 . . . . . . Power . | . . . . . . . . . . . . . . Propulsion 3 | . . . . . 2 . 1 . . . . . . Utility 3 | . . . . . 2 . 1 . . . . . . Weapon . | . . . . . . . . . . . . . . Parts Attached 195 | 7 10 2 2 2 18 46 62 1 32 4 1 3 5 Power 19 | 1 1 . . . 1 3 6 . 6 . 1 . . Engine 6 | 1 1 . . . . 1 3 . . . . . . Core 13 | . . . . . 1 2 3 . 6 . 1 . . Reactor . | . . . . . . . . . . . . . . Propulsion 43 | 2 2 . . 1 6 11 13 1 6 1 . . . Treads 9 | 1 1 . . . 1 5 1 . . . . . . Leg 5 | . . . . . . 4 1 . . . . . . Wheel 9 | 1 1 . . 1 4 2 . . . . . . . Hover 19 | . . . . . 1 . 11 1 6 . . . . Flight 1 | . . . . . . . . . . 1 . . . Utility 45 | 2 2 . 1 . 6 7 23 . 3 1 . . . Device 10 | 1 . . . . 1 3 5 . . . . . . Storage 6 | 1 2 . 1 . . . 1 . 1 . . . . Processor 5 | . . . . . 1 . 2 . 1 1 . . . Hackware 3 | . . . . . . 1 2 . . . . . . Protection 21 | . . . . . 4 3 13 . 1 . . . . Artifact . | . . . . . . . . . . . . . . Weapon 88 | 2 5 2 1 1 5 25 20 . 17 2 . 3 5 Energy Gun 2 | . . . . . . 2 . . . . . . . Energy Cannon 3 | . . . . . . . 2 . 1 . . . . Ballistic Gun 33 | 2 2 2 . 1 5 13 8 . . . . . . Ballistic Cannon 4 | . . . . . . . 4 . . . . . . Launcher 11 | . . . . . . 4 1 . 3 1 . . 2 Special Weapon 6 | . . . . . . 5 . . 1 . . . . Impact Weapon 1 | . . . . . . . . . 1 . . . . Slashing Weapon 11 | . . . . . . . . . 10 1 . . . Piercing Weapon 5 | . . . . . . . . . . . . 2 3 Special Melee Weapon 12 | . 3 . 1 . . 1 5 . 1 . . 1 . Unidentified Prototypes 9 | . . . . . 2 1 4 . 2 . . . . Parts Lost 26 | . 1 1 . . 1 9 3 1 7 1 . 2 . Power 1 | . . . . . . 1 . . . . . . . Propulsion 15 | . 1 . . . . 5 1 1 4 1 . 2 . Utility 5 | . . . . . 1 1 1 . 2 . . . . Weapon 5 | . . 1 . . . 2 1 . 1 . . . . Highest Loss Streak 3 | . 1 1 . . 1 3 1 1 3 1 . 2 . To Critical Strikes . | . . . . . . . . . . . . . . Average Slot Usage (%) 93 | . 99 100 100 100 98 94 88 90 91 77 79 86 68 Engine 5 | . 14 14 14 14 . 3 4 7 . . . . . Core 3 | . . . . . 8 4 2 . 6 4 3 6 . Treads 8 | . 14 14 14 14 18 14 . . . . . . . Leg 2 | . . . . . . 5 5 . . . . . . Wheel 7 | . 13 14 14 14 17 12 . . . . . . . Hover 11 | . . . . . . . 24 37 36 24 23 21 15 Device 2 | . 9 . . . 6 6 1 . . . . . . Storage 9 | . 14 14 14 14 9 9 7 7 7 7 7 7 7 Processor 7 | . . . . . 2 9 13 7 8 17 23 23 23 Hackware 5 | . . . . . . 1 7 23 20 13 7 7 7 Protection 8 | . 4 14 14 14 17 10 6 . . . . . . Ballistic Gun 13 | . 26 28 15 26 17 14 8 . . . . . . Slashing Weapon 1 | . . . . . . . . . 6 7 7 1 . Special Melee Weapon 1 | . 1 . 12 1 . . 1 . . . . 1 . Naked Turns . | . . . . . . . . . . . . . . Heaviest Build 74 | 15 30 30 49 49 74 73 64 45 53 33 32 32 29 Greatest Support 75 | 20 16 16 16 16 24 65 75 52 57 45 32 32 24 Greatest Overweight (x) 14 | 1 2 1 3 4 3 5 14 . 1 . . . 1 Average Overweight (x) . | . 1 1 2 3 2 2 . . . . . . . Largest Inventory Capacity 20 | 8 15 15 20 20 20 20 20 20 20 15 15 15 15 Average Capacity 18 | 7 14 15 19 20 20 20 20 20 16 15 15 15 15 Most Carried 20 | 6 15 15 17 20 20 20 20 20 20 15 15 15 15 Average Carried 17 | 3 10 14 16 18 19 19 18 19 15 14 15 14 14 Final Capacity 20 | 8 15 15 20 20 20 20 20 20 15 15 15 15 15 Final Carried 20 | 6 15 15 17 20 20 20 20 20 15 15 15 15 15 Class Distribution -------------------- 44% | Mutant 31% | Scavenger-Mutant 11% | Scavenger-Scout 9% | Hacker-Mutant Dominant Class ---------------- Mutant | -10/Materials Mutant | -10/Mines Mutant | -10/Exiles Mutant | -9/Mines Mutant | -8/Materials Scavenger-Mutant | -8/Garrison Scavenger-Scout | -7/Factory Hacker-Mutant | -7/Waste Hacker-Mutant | -7/Factory Scavenger-Mutant | -7/Lower Caves Scavenger-Mutant | -7/Lower Caves Scavenger-Mutant | -7/Data Miner Scavenger-Mutant | -6/Proximity Caves Resources | -11 -10 -10 -10 -9 -8 -8 -7 -7 -7 -7 -7 -7 -6 ----------- Run | Yrd Mat Min Exi Min Mat Gar Fac Was Fac Low Low Dat Pro Matter Collected 5268 | 264 281 198 . 56 824 1446 1610 . 413 111 . . 65 Remotely . | . . . . . . . . . . . . . . Salvage Created 5414 | 27 363 178 . 32 1272 1345 1608 . 468 78 . . 43 Parts 316 | 4 24 14 . 5 77 54 98 . 34 3 . . 3 Haulers Intercepted 10 | . 1 . . . 4 . 4 . 1 . . . . Recyclers Shooed 5 | . . . . 1 2 . 2 . . . . . . Parts Field Recycled . | . . . . . . . . . . . . . . Retrieved Matter . | . . . . . . . . . . . . . . Parts Self-Destructed 6 | . . . . . . . . . . 4 . . 2 Prevented 2 | . . . . . . . . . . 2 . . . Kills | -11 -10 -10 -10 -9 -8 -8 -7 -7 -7 -7 -7 -7 -6 ------- Run | Yrd Mat Min Exi Min Mat Gar Fac Was Fac Low Low Dat Pro Combat Hostiles Destroyed 87 | . 5 8 . . 21 21 22 . 4 2 . . 4 Melee 4 | . . . . . . . . . 4 . . . . Guns 61 | . 5 8 . . 21 14 13 . . . . . . Cannons 3 | . . . . . . . 3 . . . . . . AOE 17 | . . . . . . 7 4 . . 2 . . 4 Classes Destroyed 16 | 1 4 1 . 1 3 . 6 . . . . . . Worker 14 | . . . . 1 2 . 7 . 4 . . . . Builder 3 | . . . . . . . 1 . 2 . . . . Tunneler 4 | 2 . . . 1 . . 1 . . . . . . Hauler 10 | . 1 . . . 4 . 4 . 1 . . . . Recycler 3 | . . . . . 1 . 1 . 1 . . . . Mechanic 1 | . . . . . . . 1 . . . . . . Operator 4 | . 1 . . . 1 . 2 . . . . . . Watcher 5 | . 3 . . . . . 1 . 1 . . . . Swarmer 18 | . . 6 . . 3 3 1 . . 1 . . 4 Grunt 44 | . 5 2 . . 13 12 10 . 2 . . . . Brawler 2 | . . . . . . . 1 . . 1 . . . Duelist 1 | . . . . . . . 1 . . . . . . Protector 1 | . . . . . . . 1 . . . . . . Sentry 10 | . . . . . 3 4 3 . . . . . . Hunter 6 | . . . . . 2 2 2 . . . . . . Programmer 5 | . . . . . . . 3 . 2 . . . . Best Kill Streak 5 | 2 4 3 . 2 5 4 5 . 5 2 . . 4 Combat Bots Only 5 | . 2 3 . . 5 4 3 . 2 2 . . 4 Max Kills in Single Turn 3 | 1 1 1 . 2 2 2 3 . 2 2 . . 3 Gunslinging 1 | . . . . . 1 . . . . . . . . Exploded 3 | . . . . . . 2 2 . . 2 . . 3 Melee 1 | . . . . . . . . . 1 . . . . Uniques/NPCs Destroyed . | . . . . . . . . . . . . . . Combat | -11 -10 -10 -10 -9 -8 -8 -7 -7 -7 -7 -7 -7 -6 -------- Run | Yrd Mat Min Exi Min Mat Gar Fac Was Fac Low Low Dat Pro Hostile Shots Fired 771 | . 25 26 . . 130 152 218 1 124 58 . 10 27 Missed 267 | . 4 7 . . 31 37 87 . 51 32 . 4 14 Damage Taken 7632 | . 339 201 . . 1503 1685 1760 44 1137 426 . 285 252 Core 1084 | . 40 25 . . 198 118 241 . 122 94 . 139 107 Absorbed by Shields 228 | . . . . . . 228 . . . . . . . Regen/Repaired (Parts) 816 | . . . . . 107 . 306 . 403 . . . . Core Remaining (%) 72 | 100 . . . 74 . 42 . . . . . . . Volleys Fired 524 | 4 37 20 . 4 114 184 149 . 8 1 . . 3 Largest 2 | 2 2 2 . 2 2 2 2 . 1 1 . . 1 Hottest 90 | 40 40 40 . 40 48 90 73 . 69 39 . . 39 Shots Fired 905 | 8 74 39 . 8 219 309 236 . 8 1 . . 3 Gun 826 | 8 74 39 . 8 219 282 196 . . . . . . Cannon 45 | . . . . . . . 38 . 7 . . . . Launcher 15 | . . . . . . 8 2 . 1 1 . . 3 Special 19 | . . . . . . 19 . . . . . . . Kinetic 782 | 8 74 39 . 8 219 227 207 . . . . . . Thermal 74 | . . . . . . 74 . . . . . . . Explosive 15 | . . . . . . 8 2 . 1 1 . . 3 Electromagnetic 34 | . . . . . . . 27 . 7 . . . . Robot Hit Streak 41 | 2 9 7 . 4 24 41 32 . 2 . . . . Robot Miss Streak 7 | 1 7 2 . 1 5 2 7 . 2 2 . . . Penetration Max 1 | . . . . . . . 1 . . . . . . Secondary Targets 6 | . . 1 . . 3 1 1 . . . . . . Max Gunslinging Chain 1 | . . 1 . . 1 1 1 . . . . . . Shots Hit Robots 666 | 5 44 26 3 7 156 228 173 . 22 . . 2 . Core Hits 261 | 2 18 11 . 4 59 81 67 . 11 4 . . 4 Critical Kills . | . . . . . . . . . . . . . . Critical Parts Destroyed 4 | . 1 . . . 1 1 1 . . . . . . Critical Strikes 10 | . 1 . . . 1 4 3 . 1 . . . . Burn 2 | . . . . . . 2 . . . . . . . Destroy 4 | . 1 . . . 1 1 1 . . . . . . Blast 1 | . . . . . . . 1 . . . . . . Corrupt 1 | . . . . . . . 1 . . . . . . Sever 2 | . . . . . . 1 . . 1 . . . . Melee Attacks 72 | . . 1 3 1 . . 6 . 42 5 . 14 . Impact . | . . . . . . . . . . . . . . Slashing 47 | . . . . . . . . . 42 5 . . . Piercing 13 | . . . . . . . . . . . . 13 . Sneak Attacks 20 | . . 1 3 1 . . 6 . 7 . . 2 . Combat Hostiles 5 | . . . . . . . 3 . 2 . . . . Follow-up Attacks . | . . . . . . . . . . . . . . Damage Inflicted 13296 | 72 560 335 . 71 2124 3957 3786 . 1792 236 . 67 296 Guns 8712 | 72 560 335 . 71 2124 2975 2575 . . . . . . Cannons 854 | . . . . . . . 719 . 135 . . . . Explosions 2087 | . . . . . . 788 492 . 275 236 . . 296 Melee 1449 | . . . . . . . . . 1382 . . 67 . Ramming . | . . . . . . . . . . . . . . Kinetic 8140 | 72 560 335 . 71 2124 2298 2680 . . . . . . Thermal 1071 | . . . . . . 871 200 . . . . . . Explosive 1835 | . . . . . . 788 292 . 223 236 . . 296 Electromagnetic 801 | . . . . . . . 614 . 187 . . . . Impact . | . . . . . . . . . . . . . . Slashing 1382 | . . . . . . . . . 1382 . . . . Piercing 67 | . . . . . . . . . . . . 67 . Highest Corruption 18 | . . . . . . . 8 15 18 18 18 18 18 Average Corruption 10 | . . . . . . . 4 13 16 18 18 18 18 Corruption Purged . | . . . . . . . . . . . . . . Corruption Blocked . | . . . . . . . . . . . . . . Effects 159 | . . . . . . . 50 7 53 20 8 7 14 Message Errors 41 | . . . . . . . 16 1 12 2 1 3 6 Matter Fused 37 | . . . . . . . 12 2 11 7 3 2 . Heat Flow Errors 15 | . . . . . . . 4 . 6 3 1 . 1 Energy Discharges 28 | . . . . . . . 7 1 10 4 2 . 4 Parts Rejected 2 | . . . . . . . . . 1 . . . 1 Parts Fused 2 | . . . . . . . 1 . 1 . . . . Data Loss (minor) 16 | . . . . . . . 4 . 9 1 1 . 1 Data Loss (major) 6 | . . . . . . . 2 . 1 1 . 1 1 Misfires 2 | . . . . . . . 2 . . . . . . Alerts 3 | . . . . . . . 2 . . . . 1 . Misdirections 7 | . . . . . . . . 3 2 2 . . . Overload Shots . | . . . . . . . . . . . . . . Overflow Damage 419 | . . . . . . 77 15 . 294 22 . . 11 Projectiles 45 | . . . . . . . 15 . 30 . . . . Explosions 115 | . . . . . . 77 . . 5 22 . . 11 Melee 259 | . . . . . . . . . 259 . . . . Knockbacks 2 | . . . . . . . 2 . . . . . . Impact . | . . . . . . . . . . . . . . Kinetic 2 | . . . . . . . 2 . . . . . . Secondary . | . . . . . . . . . . . . . . Self-Inflicted Damage 197 | . . . . . . 157 26 . . 14 . . . Shots 11 | . . . . . . 7 3 . . 1 . . . Rammed . | . . . . . . . . . . . . . . Targets Rammed . | . . . . . . . . . . . . . . Kicked . | . . . . . . . . . . . . . . Crushed . | . . . . . . . . . . . . . . Highest Temperature 404 | . . 9 . 2 259 404 213 . 273 266 147 . 133 Average Temperature 70 | . . 4 . 1 69 90 47 . 76 105 76 . 64 Received Heat Transfer 2405 | . 171 78 . . 675 592 573 . 126 108 . . 82 Effects 8 | . . . . . 5 3 . . . . . . . Energy Bleed 2 | . . . . . . 2 . . . . . . . Interference 5 | . . . . . 5 . . . . . . . . Damage (minor) 1 | . . . . . . 1 . . . . . . . Siege Activations . | . . . . . . . . . . . . . . Robots Corrupted 2 | . . . . . . . 2 . . . . . . Combat Hostiles 2 | . . . . . . . 2 . . . . . . Parts Fried 3 | . . . . . . . 2 . 1 . . . . Impact Corruptions . | . . . . . . . . . . . . . . Robots Melted . | . . . . . . . . . . . . . . Combat Hostiles . | . . . . . . . . . . . . . . Parts Melted 2 | . . . . . 1 1 . . . . . . . Heat Transferred 2454 | . . . . . . 2154 300 . . . . . . Parts Sabotaged . | . . . . . . . . . . . . . . Parts Stolen . | . . . . . . . . . . . . . . Parts Stripped . | . . . . . . . . . . . . . . Power Chain Reactions 3 | . . . . . . . 2 . 1 . . . . Alert | -11 -10 -10 -10 -9 -8 -8 -7 -7 -7 -7 -7 -7 -6 ------- Run | Yrd Mat Min Exi Min Mat Gar Fac Was Fac Low Low Dat Pro Peak Influence 992 | 10 201 175 . 10 482 992 927 310 744 . . . . Initial 520 | . 6 . . . 3 240 520 310 196 . . . . Average 356 | 2 41 59 . 2 183 604 619 298 266 . . . . Maximum Alert Level 3 | . 1 . . . 2 3 3 1 3 . . . . Low Security (%) 38 | 100 97 100 . 100 51 . . . 41 . . . . Level 1 19 | . 2 . . . 46 31 . 100 45 . . . . Level 2 28 | . . . . . 1 27 81 . 11 . . . . Level 3 13 | . . . . . . 41 18 . 1 . . . . Level 4 . | . . . . . . . . . . . . . . Level 5 . | . . . . . . . . . . . . . . High Security . | . . . . . . . . . . . . . . Max Security . | . . . . . . . . . . . . . . Squads Dispatched 31 | . 1 . . . 8 . 13 . 9 . . . . Investigation 15 | . 1 . . . 4 . 4 . 6 . . . . Extermination 4 | . . . . . . . 2 . 2 . . . . Reinforcement 4 | . . . . . 1 . 2 . 1 . . . . Assault 4 | . . . . . . . 4 . . . . . . Garrison 4 | . . . . . 3 . 1 . . . . . . Intercept . | . . . . . . . . . . . . . . Searches Triggered . | . . . . . . . . . . . . . . Construction Impeded . | . . . . . . . . . . . . . . Haulers Reinforced . | . . . . . . . . . . . . . . Active Scanning Responses . | . . . . . . . . . . . . . . Cargo Convoy Interrupts . | . . . . . . . . . . . . . . Stealth | -11 -10 -10 -10 -9 -8 -8 -7 -7 -7 -7 -7 -7 -6 --------- Run | Yrd Mat Min Exi Min Mat Gar Fac Was Fac Low Low Dat Pro Distress Signals 8 | . 1 . . . 1 . 3 . 3 . . . . Communications Jammed . | . . . . . . . . . . . . . . Distress Signals . | . . . . . . . . . . . . . . Times Spotted 198 | . 14 9 . . 34 22 40 6 34 22 . 4 13 Peak Tracking Total 13 | . 3 3 . . 7 5 6 6 12 13 . 4 4 Tactical Retreats 22 | . . . . . . 1 3 1 7 8 . . 2 Traps | -11 -10 -10 -10 -9 -8 -8 -7 -7 -7 -7 -7 -7 -6 ------- Run | Yrd Mat Min Exi Min Mat Gar Fac Was Fac Low Low Dat Pro Traps Triggered 18 | . 2 . . . 1 8 4 . 3 . . . . Indirectly . | . . . . . . . . . . . . . . Trap Hack Attempts 59 | . 23 . . . . 5 31 . . . . . . Triggered . | . . . . . . . . . . . . . . Disarmed 3 | . . . . . . 1 2 . . . . . . Reprogrammed 7 | . 2 . . . . . 5 . . . . . . Reused 1 | . . . . . . . 1 . . . . . . Traps Extracted 5 | . . . . . . . 5 . . . . . . Installed 1 | . . . . . . . 1 . . . . . . Triggered 3 | . . . . . . . 1 . . 2 . . . Most Traps Carried 4 | . . . . . . . 4 4 4 4 4 4 4 Machines | -11 -10 -10 -10 -9 -8 -8 -7 -7 -7 -7 -7 -7 -6 ---------- Run | Yrd Mat Min Exi Min Mat Gar Fac Was Fac Low Low Dat Pro Machines Disabled 25 | . . . . . 3 1 1 . 20 . . . . Max in Single Turn 8 | . . . . . 1 1 1 . 8 . . . . Garrison Access 4 | . . . . . . . 1 . 3 . . . . Garrison Relay 3 | . . . . . . 3 . . . . . . . Machines Repaired . | . . . . . . . . . . . . . . Machines Dismantled 3 | . . . . . . 3 . . . . . . . Machines Sabotaged . | . . . . . . . . . . . . . . Overloaded Fab Kills 2 | . . . . . . . . . 2 . . . . Hacking | -11 -10 -10 -10 -9 -8 -8 -7 -7 -7 -7 -7 -7 -6 --------- Run | Yrd Mat Min Exi Min Mat Gar Fac Was Fac Low Low Dat Pro Machines Accessed 60 | . 9 . 2 1 8 2 15 . 19 . . 4 . Terminals 23 | . 8 . . . 3 2 5 . 5 . . . . Fabricators 6 | . . . . . . . 1 . 5 . . . . Repair Stations 6 | . 1 . . . 1 . 2 . 2 . . . . Recycling Units 6 | . . . . . 2 . 2 . 2 . . . . Scanalyzers 6 | . . . . . 1 . 3 . 2 . . . . Garrison Access 6 | . . . . . 1 . 2 . 3 . . . . Total Hacks 182 | . 23 . 5 1 26 5 48 . 45 . . 29 . Successful 130 | . 14 . 5 1 20 1 32 . 28 . . 29 . Failed 52 | . 9 . . . 6 4 16 . 17 . . . . Catastrophic 9 | . . . . . 3 . 5 . 1 . . . . Database Lockouts . | . . . . . . . . . . . . . . Manual 47 | . 12 . 1 . 9 1 10 . 14 . . . . Terminals 61 | . 22 . . . 10 5 13 . 11 . . . . Fabricators 14 | . . . . . . . 3 . 11 . . . . Repair Stations 20 | . 1 . . . 6 . 5 . 8 . . . . Recycling Units 17 | . . . . . 4 . 8 . 5 . . . . Scanalyzers 24 | . . . . . 4 . 16 . 4 . . . . Garrison Access 11 | . . . . . 2 . 3 . 6 . . . . Terminal Hacks 60 | . 11 . 5 1 3 1 5 . 5 . . 29 . Record 15 | . . . 4 . . . . . . . . 11 . Part Schematic 12 | . 1 . . . . . . . . . . 11 . Robot Schematic 5 | . 1 . . . . . . . . . . 4 . Robot Analysis 2 | . 2 . . . . . . . . . . . . Prototype ID Bank 7 | . 2 . . . 1 . . . 1 . . 3 . Open Door 1 | . . . . 1 . . . . . . . . . Open DSF 1 | . . . . . . . . . 1 . . . . Branch Access Points 2 | . . . . . . . 1 . 1 . . . . Emergency Access Points 1 | . . . . . . 1 . . . . . . . Terminal Index 3 | . 1 . . . 1 . 1 . . . . . . Fabricator Index 1 | . . . . . . . . . 1 . . . . Scanalyzer Index 1 | . . . . . . . 1 . . . . . . Locate Traps 2 | . 1 . . . . . 1 . . . . . . Hauler Manifests 1 | . . . . . . . 1 . . . . . . Registered Components 1 | . 1 . . . . . . . . . . . . Zone Layout 4 | . 2 . . . 1 . . . 1 . . . . Derelict Proto ID Bank 1 | . . . 1 . . . . . . . . . . Fabricator Hacks 6 | . . . . . . . 3 . 3 . . . . Network Status 2 | . . . . . . . 1 . 1 . . . . Load Schematic 3 | . . . . . . . 1 . 2 . . . . Build 1 | . . . . . . . 1 . . . . . . Repair Station Hacks 18 | . 1 . . . 5 . 4 . 8 . . . . Scan Component 10 | . . . . . 3 . 3 . 4 . . . . Repair 7 | . . . . . 2 . 1 . 4 . . . . Refit 1 | . 1 . . . . . . . . . . . . Recycling Unit Hacks 6 | . . . . . 2 . 2 . 2 . . . . Report Inventory 6 | . . . . . 2 . 2 . 2 . . . . Scanalyzer 18 | . . . . . 4 . 12 . 2 . . . . Insert Component 9 | . . . . . 2 . 6 . 1 . . . . Analyze 9 | . . . . . 2 . 6 . 1 . . . . Garrison Access Hacks 5 | . . . . . 1 . 1 . 3 . . . . Unlock Access 1 | . . . . . 1 . . . . . . . . Seal Access 4 | . . . . . . . 1 . 3 . . . . Unauthorized Hacks 17 | . 2 . . . 5 . 5 . 5 . . . . Terminals 7 | . 2 . . . 3 . . . 2 . . . . Assimilate 1 | . . . . . . . . . 1 . . . . Botnet 4 | . 1 . . . 2 . . . 1 . . . . Operators 2 | . 1 . . . 1 . . . . . . . . Fabricators 3 | . . . . . . . . . 3 . . . . Overload 1 | . . . . . . . . . 1 . . . . Recompile 2 | . . . . . . . . . 2 . . . . Repair Stations . | . . . . . . . . . . . . . . Recycling Units 7 | . . . . . 2 . 5 . . . . . . Reject 2 | . . . . . . . 2 . . . . . . Recyclers 1 | . . . . . . . 1 . . . . . . Mask 2 | . . . . . . . 2 . . . . . . Tunnel 2 | . . . . . 2 . . . . . . . . Scanalyzers . | . . . . . . . . . . . . . . Garrison Access . | . . . . . . . . . . . . . . Data Cores Recovered 3 | . 2 . . . . . 1 . . . . . . Used 1 | . . . . . . . 1 . . . . . . Hacking Detections 39 | . 5 . . . 6 2 13 . 13 . . . . Full Trace Events 11 | . 3 . . . 1 . 4 . 3 . . . . Feedback Events 3 | . . . . . . . . . 3 . . . . Corruption 2 | . . . . . . . . . 2 . . . . Hackware Fried 1 | . . . . . . . . . 1 . . . . Feedback Blocked . | . . . . . . . . . . . . . . Robot Schematics Acquired 5 | . 1 . . . . . . . . . . 4 . Robots Built 1 | . . . . . . . 1 . . . . . . Authchips . | . . . . . . . . . . . . . . Time 81 | . . . . . . . 81 . . . . . . Total Robot Build Rating 1 | . . . . . . . 1 . . . . . . Part Schematics Acquired 19 | . 1 . . . 2 . 4 . 1 . . 11 . Parts Built . | . . . . . . . . . . . . . . Authchips . | . . . . . . . . . . . . . . Time . | . . . . . . . . . . . . . . Total Part Build Rating . | . . . . . . . . . . . . . . Parts Repaired 7 | . . . . . 2 . 1 . 4 . . . . Time 360 | . . . . . 122 . 22 . 216 . . . . Parts Recycled . | . . . . . . . . . . . . . . Recycled Matter . | . . . . . . . . . . . . . . Retrieved Matter . | . . . . . . . . . . . . . . Retrieved Components . | . . . . . . . . . . . . . . Parts Scanalyzed 7 | . . . . . 2 . 4 . 1 . . . . Part Schematics Acquired 7 | . . . . . 2 . 4 . 1 . . . . Parts Damaged 2 | . . . . . 1 . 1 . . . . . . Bothacking | -11 -10 -10 -10 -9 -8 -8 -7 -7 -7 -7 -7 -7 -6 ------------ Run | Yrd Mat Min Exi Min Mat Gar Fac Was Fac Low Low Dat Pro Used RIF Installer . | . . . . . . . . . . . . . . Robots Hacked 7 | . . 1 3 . . . 2 . . . . 1 . Non-combat 5 | . . . 3 . . . 2 . . . . . . Combat 2 | . . 1 . . . . . . . . . 1 . Robot Hacks Applied 8 | . . 1 3 . . . 3 . . . . 1 . parse_system 5 | . . 1 3 . . . . . . . . 1 . no_distress 1 | . . . . . . . 1 . . . . . . find_chute 2 | . . . . . . . 2 . . . . . . Relay Couplers Released 11 | . . . . . . 11 . . . . . . . Machine Destruction 11 | . . . . . . 11 . . . . . . . Fabnet Peak Effective % . | . . . . . . . . . . . . . . Robots Rewired 1 | . . . . . . . 1 . . . . . . Allies Hacked . | . . . . . . . . . . . . . . Hacks Repelled . | . . . . . . . . . . . . . . Allies | -11 -10 -10 -10 -9 -8 -8 -7 -7 -7 -7 -7 -7 -6 -------- Run | Yrd Mat Min Exi Min Mat Gar Fac Was Fac Low Low Dat Pro Total Allies 6 | . . . . 2 . . 2 1 1 . . . . Largest Group 2 | . . . . 2 2 . 1 1 1 . . . . Highest-Rated Group 42 | . . . . 42 42 . 32 31 26 . . . . Highest-Rated Ally 32 | . . . . 31 31 . 32 31 26 . . . . Total Orders 4 | . . . . . . . 4 . . . . . . STAY 1 | . . . . . . . 1 . . . . . . FOLLOW 2 | . . . . . . . 2 . . . . . . AID 1 | . . . . . . . 1 . . . . . . Ally Attacks 62 | . . . . . 30 . 20 12 . . . . . Total Damage 1244 | . . . . . 422 . 607 215 . . . . . Kills 6 | . . . . . 1 . 5 . . . . . . Allies Corrupted . | . . . . . . . . . . . . . . Allies Melted . | . . . . . . . . . . . . . . Intel | -11 -10 -10 -10 -9 -8 -8 -7 -7 -7 -7 -7 -7 -6 ------- Run | Yrd Mat Min Exi Min Mat Gar Fac Was Fac Low Low Dat Pro Robot Analysis Total 136 | . 2 . . . . . . . . . . 134 . Derelict Logs Recovered 8 | . . 1 . 2 . . . . . 2 1 . 2 Drone Launches . | . . . . . . . . . . . . . . Drone Recoveries . | . . . . . . . . . . . . . . Exploration | -11 -10 -10 -10 -9 -8 -8 -7 -7 -7 -7 -7 -7 -6 ------------- Run | Yrd Mat Min Exi Min Mat Gar Fac Was Fac Low Low Dat Pro Turns Passed 11093 | 71 980 822 484 658 1218 2034 2441 86 1281 354 187 136 341 Spaces Moved 8416 | 46 714 634 328 439 590 958 1858 137 1369 570 294 132 347 Core 2 | 1 . . . . . . 1 . . . . . . Treads 13 | 2 . . . . 5 6 . . . . . . . Legs 569 | . . . . . . 226 343 . . . . . . Wheels 3469 | 43 714 634 328 439 585 726 . . . . . . . Hover 4363 | . . . . . . . 1514 137 1369 570 294 132 347 Flight . | . . . . . . . . . . . . . . Fastest Speed 37 | 50 95 115 115 140 110 120 54 54 37 49 63 63 77 Average Speed 93 | 93 111 115 137 143 124 135 77 54 55 57 63 65 77 Slowest Speed 750 | 160 115 115 145 145 320 240 750 62 120 63 63 77 147 Overloaded Moves 329 | . . . . . . . . 2 46 281 . . . Propulsion Burnouts . | . . . . . . . . . . . . . . Robots Hopped . | . . . . . . . . . . . . . . Cave-ins Triggered . | . . . . . . . . . . . . . . Exploration Rate (%) 63 | 4 96 99 71 84 49 79 33 82 39 84 41 80 54 Regions Visited 13 Branch Regions 7 Pre-discovered Areas 30 | . . 1 1 1 2 . . . . 2 . 23 . Known Exits Taken 3 | . . . . 1 1 . . . 1 . . . . Unknown Exits Taken 7 | 1 1 1 1 . . . . . . 1 1 1 . Scrap Searched 11 | . . 2 . 2 . . . . . 4 1 . 2 Spaces Dug 82 | . . . . . . 25 2 . 16 2 . . 37 Terrain Destroyed 193 | . . . . . . 67 31 . 40 18 . . 37 Melee 18 | . . . . . . . . . 16 2 . . . Projectile 3 | . . . . . . . 3 . . . . . . AOE 171 | . . . . . . 67 27 . 24 16 . . 37 Terrain Rammed . | . . . . . . . . . . . . . . Walls Destroyed . | . . . . . . . . . . . . . . Machines Disabled . | . . . . . . . . . . . . . . Actions | -11 -10 -10 -10 -9 -8 -8 -7 -7 -7 -7 -7 -7 -6 --------- Run | Yrd Mat Min Exi Min Mat Gar Fac Was Fac Low Low Dat Pro Total 10833 | 62 818 689 358 458 896 1451 2682 147 1809 589 294 164 416 Wait 1283 | . 20 28 23 8 145 150 516 9 314 . . 13 57 Move 8401 | 45 713 633 327 438 589 954 1858 136 1368 569 293 131 347 Hop . | . . . . . . . . . . . . . . Pick Up 105 | 6 10 3 2 3 13 24 22 1 16 3 . 1 1 Fast Attach 60 | 7 . . . . 5 10 16 . 16 2 1 . 3 Attach 48 | . 1 1 . . 6 9 14 1 10 2 . 3 1 Detach 16 | . . . . . 1 3 6 . 3 2 . 1 . Swap 88 | . 9 1 2 2 7 27 33 . 6 . . . 1 Drop 123 | . 5 2 1 2 16 31 30 . 26 5 . 2 3 Fire 524 | 4 37 20 . 4 114 184 149 . 8 1 . . 3 Melee 71 | . . 1 3 1 . . 6 . 42 5 . 13 . Ram . | . . . . . . . . . . . . . . Kick . | . . . . . . . . . . . . . . Crush . | . . . . . . . . . . . . . . Escape Stasis 45 | . . . . . . 45 . . . . . . . Rewire . | . . . . . . . . . . . . . . Trap 60 | . 23 . . . . 5 32 . . . . . . Miscellaneous 9 | . . . . . . 9 . . . . . . . Route ------- -11/Scrapyard -10/Materials (discovered 5 exits: *Mat x3 / [*Min x2]) -10/Mines (discovered 3 exits: *Mat x2 / *Exi) -10/Exiles (discovered 2 exits: *Min x2) -9/Mines (discovered 2 exits: *Mat x2) -8/Materials (discovered 3 exits: *Fac x2 / Gar) -8/Garrison (discovered 3 exits: *Fac x3) -7/Factory (discovered 2 exits: Low x2) -7/Waste -7/Factory (discovered 2 exits: *Low x2) -7/Lower Caves -7/Lower Caves (discovered 2 exits: Fac / *Dat) -7/Data Miner -6/Proximity Caves History --------- Turn | Location | Event 2 | -11/Scrapyard | Met Revision 17 27 | -11/Scrapyard | Discovered new exit (range 15) 72 | -11/Scrapyard | Entered Materials 137 | -10/Materials | Discovered new exit (range 6) 138 | -10/Materials | Met 8R-AWN 206 | -10/Materials | Discovered new exit (range 15) 317 | -10/Materials | Build established: Mutant 539 | -10/Materials | Discovered new exit (range 14) 782 | -10/Materials | Discovered new exit (range 16) 894 | -10/Materials | Discovered new exit (range 12) 1052 | -10/Materials | Entered Mines 1054 | -10/Mines | Met a Derelict bent on vengeance 1054 | -10/Mines | Followed 8R-AWN into the Mines 1070 | -10/Mines | Found a damaged Exp. Sensor Array with a note attached 1073 | -10/Mines | Found Prototype Device 1091 | -10/Mines | Discovered new exit (range 5) 1263 | -10/Mines | Discovered new exit (range 6) 1366 | -10/Mines | Identified exit to Materials 1719 | -10/Mines | Learned location of Storage (-9) 1874 | -10/Mines | Entered Exiles 1889 | -10/Exiles | Discovered new exit (range 15) 1906 | -10/Exiles | Welcomed by 8R-AWN 1922 | -10/Exiles | Met EX-HEX 1996 | -10/Exiles | Met EX-DEC 2036 | -10/Exiles | Learned location of Zion (-6) 2067 | -10/Exiles | Met EX-BIN 2138 | -10/Exiles | Aligned with FarCom system 2139 | -10/Exiles | Given EX-Vault access code 2174 | -10/Exiles | Opened EX-Vault 2184 | -10/Exiles | Found Superbattery 2234 | -10/Exiles | Warned to stay clear of 0b10 Research branches 2345 | -10/Exiles | Discovered new exit (range 11) 2358 | -10/Exiles | Left Exiles lab with Superbattery 2358 | -10/Exiles | Entered Mines 2657 | -9/Mines | Found the Drone Emporium 2665 | -9/Mines | Found Prototype Device 2843 | -9/Mines | Identified exit to Materials 2874 | -9/Mines | Discovered exit to Materials (range 13) 3016 | -9/Mines | Entered Materials 3016 | -8/Materials | Accompanied by 2 allies 3016 | -8/Materials | Evolved 4 slots: Propulsion x2, Utility x2 3021 | -8/Materials | Led the pair of lost Derelicts to an unsafe place 3169 | -8/Materials | Found Powered Armor 3173 | -8/Materials | Found Powered Armor 3175 | -8/Materials | Found Powered Armor 3177 | -8/Materials | Found Powered Armor 3530 | -8/Materials | Discovered new exit (range 8) 3702 | -8/Materials | Discovered new exit (range 7) 3762 | -8/Materials | Repaired Broken Powered Armor? 3881 | -8/Materials | Repaired Broken Powered Armor 3966 | -8/Materials | Garrison activated, responded to threat 4009 | -8/Materials | Identified exit to Garrison 4234 | -8/Materials | Entered Garrison 4369 | -8/Garrison | Lost 3 parts (2n1w) 4400 | -8/Garrison | Triggered checkpoint 4440 | -8/Garrison | Garrison Relay disabled 4799 | -8/Garrison | Discovered new exit (range 8) 4820 | -8/Garrison | Garrison Relay disabled 4902 | -8/Garrison | Triggered checkpoint 4968 | -8/Garrison | Garrison Relay disabled 5268 | -8/Garrison | Triggered checkpoint 5268 | -8/Garrison | Triggered checkpoint 5304 | -8/Garrison | Triggered checkpoint 5310 | -8/Garrison | Core integrity fell below 50% 5396 | -8/Garrison | Build established: Scavenger-Mutant 5426 | -8/Garrison | Discovered new exit (range 14) 5628 | -8/Garrison | Triggered checkpoint 5726 | -8/Garrison | Triggered checkpoint 5733 | -8/Garrison | Discovered new exit (range 14) 5984 | -8/Garrison | Identified Decoy Drone Bay 6027 | -8/Garrison | Attempted to access garrison exit controls, blocked by remote lockdown 6158 | -8/Garrison | Attempted to access garrison exit controls, blocked by remote lockdown 6268 | -8/Garrison | Entered Factory 6268 | -7/Factory | Evolved 2 slots: Propulsion x1, Utility x1 6361 | -7/Factory | Repaired Powered Armor 7068 | -7/Factory | First assault squad dispatched 8006 | -7/Factory | Build established: Scavenger-Scout 8176 | -7/Factory | Garrison activated, responded to threat 8213 | -7/Factory | Fabricated M-13 Machinist? 8247 | -7/Factory | Identified Exp. Sensor Array 8556 | -7/Factory | Identified exit to Lower Caves 8709 | -7/Factory | Sucked down chute 8709 | -7/Factory | Entered Waste 8710 | -7/Waste | Met a frightened Derelict 8718 | -7/Waste | Spotted C-40 Crusher 8723 | -7/Waste | Spotted C-40 Crusher 8724 | -7/Waste | EMP discharged 8724 | -7/Waste | System corruption reached 10% 8728 | -7/Waste | Spotted C-40 Crusher 8735 | -7/Waste | Spotted C-40 Crusher 8743 | -7/Waste | Spotted C-40 Crusher 8743 | -7/Waste | Spotted C-40 Crusher 8781 | -7/Waste | Crushed by Compactor (1 part destroyed, 1 dropped) 8787 | -7/Waste | Discovered new exit (range 11) 8795 | -7/Waste | Entered Factory 8987 | -7/Factory | Build established: Hacker-Mutant 9097 | -7/Factory | Lost 3 parts (2n1w) 9284 | -7/Factory | Repaired Broken Cmb. Airjet 9336 | -7/Factory | Repaired Cmb. Airjet 9363 | -7/Factory | Repaired Hcp. Storage Unit 9655 | -7/Factory | Repaired Cld. Airjet 9720 | -7/Factory | Hacking Suite fried by hacking feedback 10016 | -7/Factory | Build established: Scavenger-Mutant 10076 | -7/Factory | Core integrity fell below 50% 10076 | -7/Factory | Entered Lower Caves 10082 | -7/Lower Caves | Met a Warlord Commander 10083 | -7/Lower Caves | Learned location of Warlord (-5) 10084 | -7/Lower Caves | Warlord Commander delivered Encrypted Comm Array 10085 | -7/Lower Caves | Found Encrypted Comm Array 10104 | -7/Lower Caves | Spotted B-75 Beast 10131 | -7/Lower Caves | Attracted the attention of an 0b10 outpost 10193 | -7/Lower Caves | Attracted the attention of an 0b10 checkpoint 10320 | -7/Lower Caves | Learned Factory machine intel 10337 | -7/Lower Caves | Discovered new exit (range 15) 10339 | -7/Lower Caves | Encountered a Warlord checkpoint 10430 | -7/Lower Caves | Entered another Lower Caves area 10433 | -7/Lower Caves | Identified exit to Factory 10575 | -7/Lower Caves | Discovered new exit (range 7) 10617 | -7/Lower Caves | Entered Data Miner 10617 | -7/Data Miner | Discovered new exit (range 6) 10629 | -7/Data Miner | Met Data Miner 10651 | -7/Data Miner | Learned location of Section 7 (-2) 10651 | -7/Data Miner | Acquired the access code to Warlord's prototype stash 10661 | -7/Data Miner | Received God Mode back door access code from Data Miner 10686 | -7/Data Miner | Interfaced with the Data Conduit 10744 | -7/Data Miner | Core integrity fell below 20% 10753 | -7/Data Miner | Entered Proximity Caves 10860 | -6/Proximity Caves | Learned Factory stockpile data 11094 | -6/Proximity Caves | Destroyed by G-50 Soldier with Heavy Laser Last Messages --------------- Data stored: Factory stockpile data. 10879_ System corrupted: Heat flow error (+163). 10894_ 26EBJREYAQR=TM|>MIBUEL2 10917_ System corrupted: Energy discharge (-27). 10932_ Y7IZ1YQMIOZR=C M3> J=PUY2KT4NIG4C:Y 10953_ 0KTC#3R7F 4Y39QOUQ=WWE:UDL 10973_ System corrupted: Component data lost. 10988_ System corrupted: Energy discharge (-35). 11025_ Searching scrap... 11025_ Found Imp. Cryofiber Web. 11025_ Found Imp. Carbon-fiber Leg. 11025_ Found Force Booster. 11025_ Found 30 Matter. 11026_ Acquired 30 matter. 11034_ System corrupted: Energy discharge (-25). 11053_ SPE=SRAJ3CNDJZSWRQ IID 11069_ #TKMEEORI=A4TMO